[Event "Titled Tuesday Blitz April 19 Early 2022"]
[White "Yeletsky, Ivan"]
[Black "Wieczorek, Oskar"]
[WhiteFideId "24180327"]
[BlackFideId "1133950"]
[WhiteElo "2319"]
[BlackElo "2319"]
[Result "1/2-1/2"]
[Round "05"]
[TimeControl "180+1"]
[Date "2022.04.19"]
[WhiteClock "0:00:07"]
[BlackClock "0:00:07"]

1. d4 {[%clk 0:03:00]}  Nf6 {[%clk 0:02:58]} 2. c4 {[%clk 0:03:00]}  c5 {[%clk 0:02:59]} 3. d5 {[%clk 0:03:00]}  b5 {[%clk 0:02:59]} 4. cxb5 {[%clk 0:03:00]}  a6 {[%clk 0:03:00]} 5. f3 {[%clk 0:03:00]}  e6 {[%clk 0:02:49]} 6. e4 {[%clk 0:03:01]}  exd5 {[%clk 0:02:50]} 7. e5 {[%clk 0:03:01]}  Qe7 {[%clk 0:02:50]} 8. Qe2 {[%clk 0:02:59]}  Ng8 {[%clk 0:02:50]} 9. Nc3 {[%clk 0:02:59]}  Bb7 {[%clk 0:02:51]} 10. Nh3 {[%clk 0:02:48]}  c4 {[%clk 0:02:50]} 11. Nf4 {[%clk 0:02:46]}  Qc5 {[%clk 0:02:44]} 12. Nfxd5 {[%clk 0:02:02]}  Bxd5 {[%clk 0:02:45]} 13. Be3 {[%clk 0:02:03]}  Qb4 {[%clk 0:02:46]} 14. O-O-O {[%clk 0:02:03]}  Be6 {[%clk 0:02:34]} 15. f4 {[%clk 0:02:03]}  Nh6 {[%clk 0:02:18]} 16. Qf3 {[%clk 0:02:02]}  Bc5 {[%clk 0:02:13]} 17. Bxc5 {[%clk 0:01:55]}  Qxc5 {[%clk 0:02:14]} 18. Qxa8 {[%clk 0:01:54]}  O-O {[%clk 0:02:09]} 19. Qe4 {[%clk 0:01:50]}  axb5 {[%clk 0:02:05]} 20. Qd4 {[%clk 0:01:49]}  Qc6 {[%clk 0:01:30]} 21. Qd6 {[%clk 0:01:39]}  Qb7 {[%clk 0:01:30]} 22. Be2 {[%clk 0:01:39]}  Nf5 {[%clk 0:01:30]} 23. Qc5 {[%clk 0:01:29]}  b4 {[%clk 0:01:22]} 24. Bf3 {[%clk 0:01:29]}  Qa6 {[%clk 0:01:12]} 25. Qxb4 {[%clk 0:01:27]}  Nc6 {[%clk 0:01:13]} 26. Qb5 {[%clk 0:01:27]}  Qa7 {[%clk 0:01:11]} 27. Bxc6 {[%clk 0:01:22]}  dxc6 {[%clk 0:01:12]} 28. Qxc6 {[%clk 0:01:23]}  Qe3+ {[%clk 0:01:07]} 29. Kb1 {[%clk 0:01:16]}  Nd4 {[%clk 0:01:08]} 30. Rxd4 {[%clk 0:00:56]}  Qxd4 {[%clk 0:01:08]} 31. Qe4 {[%clk 0:00:57]}  Qd7 {[%clk 0:00:34]} 32. Rd1 {[%clk 0:00:56]}  Qc8 {[%clk 0:00:33]} 33. Ka1 {[%clk 0:00:56]}  h6 {[%clk 0:00:31]} 34. h3 {[%clk 0:00:54]}  Bf5 {[%clk 0:00:31]} 35. Qd4 {[%clk 0:00:53]}  Bd3 {[%clk 0:00:31]} 36. Nd5 {[%clk 0:00:53]}  Kh8 {[%clk 0:00:30]} 37. Ne3 {[%clk 0:00:45]}  Rd8 {[%clk 0:00:29]} 38. Qc3 {[%clk 0:00:45]}  Rd7 {[%clk 0:00:21]} 39. a3 {[%clk 0:00:45]}  Rc7 {[%clk 0:00:20]} 40. g4 {[%clk 0:00:44]}  Qa6 {[%clk 0:00:17]} 41. Nd5 {[%clk 0:00:41]}  Rb7 {[%clk 0:00:17]} 42. Nb4 {[%clk 0:00:40]}  Qa4 {[%clk 0:00:18]} 43. Rc1 {[%clk 0:00:40]}  Be2 {[%clk 0:00:16]} 44. f5 {[%clk 0:00:39]}  Rd7 {[%clk 0:00:16]} 45. e6 {[%clk 0:00:31]}  fxe6 {[%clk 0:00:15]} 46. fxe6 {[%clk 0:00:32]}  Rd1 {[%clk 0:00:15]} 47. Rxd1 {[%clk 0:00:29]}  Qxd1+ {[%clk 0:00:15]} 48. Ka2 {[%clk 0:00:29]}  Qd6 {[%clk 0:00:11]} 49. Qe3 {[%clk 0:00:26]}  Bd1 {[%clk 0:00:11]} 50. e7 {[%clk 0:00:21]}  Bb3+ {[%clk 0:00:12]} 51. Kb1 {[%clk 0:00:22]}  Qd1+ {[%clk 0:00:10]} 52. Qc1 {[%clk 0:00:23]}  Qe2 {[%clk 0:00:10]} 53. Nd5 {[%clk 0:00:19]}  Qe4+ {[%clk 0:00:07]} 54. Ka1 {[%clk 0:00:18]}  Kg8 {[%clk 0:00:05]} 55. h4 {[%clk 0:00:06]}  Ba4 {[%clk 0:00:05]} 56. Nb6 {[%clk 0:00:04]}  Bb5 {[%clk 0:00:04]} 57. Nc8 {[%clk 0:00:04]}  Bd7 {[%clk 0:00:02]} 58. Nd6 {[%clk 0:00:04]}  Qxe7 {[%clk 0:00:03]} 59. Qxc4+ {[%clk 0:00:05]}  Kh7 {[%clk 0:00:03]} 60. Qe4+ {[%clk 0:00:04]}  Qxe4 {[%clk 0:00:04]} 61. Nxe4 {[%clk 0:00:05]}  Bxg4 {[%clk 0:00:05]} 62. a4 {[%clk 0:00:06]}  Bf3 {[%clk 0:00:05]} 63. Nd2 {[%clk 0:00:05]}  Bc6 {[%clk 0:00:04]} 64. b4 {[%clk 0:00:05]}  g5 {[%clk 0:00:05]} 65. hxg5 {[%clk 0:00:06]}  hxg5 {[%clk 0:00:06]} 66. Kb2 {[%clk 0:00:07]}  Bxa4 {[%clk 0:00:06]} 67. Kc3 {[%clk 0:00:06]}  Kg6 {[%clk 0:00:06]} 68. Kd4 {[%clk 0:00:07]}  Kf5 {[%clk 0:00:06]} 69. Kc5 {[%clk 0:00:08]}  g4 {[%clk 0:00:07]} 70. Nc4 {[%clk 0:00:08]}  g3 {[%clk 0:00:06]} 71. b5 {[%clk 0:00:07]}  Bxb5 {[%clk 0:00:06]} 72. Kxb5 {[%clk 0:00:08]}  Ke4 {[%clk 0:00:06]} 73. Nd2+ {[%clk 0:00:07]}  Kd3 {[%clk 0:00:06]} 74. Nf3 {[%clk 0:00:06]}  g2 {[%clk 0:00:07]} 75. Ne1+ {[%clk 0:00:06]}  Ke2 {[%clk 0:00:07]} 76. Nxg2 {[%clk 0:00:07]} 1/2-1/2


[Site "https://www.chess.com"]

[Event "Titled Tuesday Blitz April 19 Early 2022"]
[White "Zanette, Edgard Vinicius"]
[Black "Karas, Marek"]
[WhiteFideId "2109263"]
[BlackFideId "14928558"]
[WhiteElo "2182"]
[BlackElo "2271"]
[Result "1-0"]
[Round "05"]
[TimeControl "180+1"]
[Date "2022.04.19"]
[WhiteClock "0:01:04"]
[BlackClock "0:02:06"]

1. e4 {[%clk 0:02:57]}  e6 {[%clk 0:02:59]} 2. d4 {[%clk 0:02:53]}  d5 {[%clk 0:03:00]} 3. Nc3 {[%clk 0:02:53]}  Nf6 {[%clk 0:03:00]} 4. Bg5 {[%clk 0:02:52]}  Be7 {[%clk 0:03:00]} 5. e5 {[%clk 0:02:51]}  Nfd7 {[%clk 0:03:01]} 6. h4 {[%clk 0:02:43]}  h6 {[%clk 0:03:01]} 7. Bxe7 {[%clk 0:02:12]}  Qxe7 {[%clk 0:03:02]} 8. Qd2 {[%clk 0:02:11]}  O-O {[%clk 0:03:02]} 9. O-O-O {[%clk 0:02:10]}  c5 {[%clk 0:03:02]} 10. f4 {[%clk 0:02:09]}  Nc6 {[%clk 0:03:01]} 11. Nf3 {[%clk 0:02:09]}  f6 {[%clk 0:02:58]} 12. exf6 {[%clk 0:02:01]}  Qxf6 {[%clk 0:02:52]} 13. g3 {[%clk 0:01:59]}  b6 {[%clk 0:02:41]} 14. Bh3 {[%clk 0:01:51]}  cxd4 {[%clk 0:02:37]} 15. Nxd4 {[%clk 0:01:48]}  Nxd4 {[%clk 0:02:36]} 16. Qxd4 {[%clk 0:01:49]}  Nc5 {[%clk 0:02:35]} 17. Qxf6 {[%clk 0:01:33]}  Rxf6 {[%clk 0:02:36]} 18. Rhe1 {[%clk 0:01:31]}  Bd7 {[%clk 0:02:34]} 19. b4 {[%clk 0:01:26]}  Na4 {[%clk 0:02:29]} 20. Nxa4 {[%clk 0:01:21]}  Bxa4 {[%clk 0:02:28]} 21. Bxe6+ {[%clk 0:01:21]}  Kf8 {[%clk 0:02:26]} 22. Bxd5 {[%clk 0:01:14]}  Rc8 {[%clk 0:02:27]} 23. Bb3 {[%clk 0:01:13]}  Bc6 {[%clk 0:02:17]} 24. Re5 {[%clk 0:01:06]}  Rc7 {[%clk 0:02:06]} 25. Rd8+ {[%clk 0:01:04]} 1-0


[Site "https://www.chess.com"]

[Event "Titled Tuesday Blitz April 19 Early 2022"]
[White "Agasarov, Benik"]
[Black "Sarkar, Justin"]
[WhiteFideId "13314823"]
[BlackFideId "2010011"]
[WhiteElo "2507"]
[BlackElo "2038"]
[Result "0-1"]
[Round "06"]
[TimeControl "180+1"]
[Date "2022.04.19"]
[WhiteClock "0:00:01"]
[BlackClock "0:00:04"]

1. d4 {[%clk 0:03:00]}  e6 {[%clk 0:02:46]} 2. e4 {[%clk 0:02:58]}  d5 {[%clk 0:02:46]} 3. Bd3 {[%clk 0:02:59]}  c5 {[%clk 0:02:33]} 4. exd5 {[%clk 0:02:55]}  Qxd5 {[%clk 0:02:29]} 5. Nc3 {[%clk 0:02:52]}  Qxd4 {[%clk 0:02:24]} 6. Nf3 {[%clk 0:02:50]}  Qd8 {[%clk 0:02:21]} 7. Bf4 {[%clk 0:02:45]}  Nf6 {[%clk 0:02:08]} 8. O-O {[%clk 0:02:36]}  Nc6 {[%clk 0:02:05]} 9. Nb5 {[%clk 0:02:29]}  Nd5 {[%clk 0:02:03]} 10. Bg3 {[%clk 0:02:22]}  a6 {[%clk 0:02:01]} 11. c4 {[%clk 0:02:12]}  axb5 {[%clk 0:01:59]} 12. cxd5 {[%clk 0:02:11]}  exd5 {[%clk 0:01:42]} 13. Bxb5 {[%clk 0:02:00]}  Be7 {[%clk 0:01:41]} 14. Ne5 {[%clk 0:01:59]}  Bd7 {[%clk 0:01:32]} 15. Re1 {[%clk 0:01:16]}  Nxe5 {[%clk 0:01:15]} 16. Bxe5 {[%clk 0:01:15]}  O-O {[%clk 0:01:05]} 17. Bd3 {[%clk 0:00:49]}  Be6 {[%clk 0:00:41]} 18. Qh5 {[%clk 0:00:42]}  g6 {[%clk 0:00:37]} 19. Qf3 {[%clk 0:00:34]}  c4 {[%clk 0:00:27]} 20. Bc2 {[%clk 0:00:29]}  d4 {[%clk 0:00:27]} 21. Be4 {[%clk 0:00:25]}  d3 {[%clk 0:00:16]} 22. Qe3 {[%clk 0:00:23]}  Re8 {[%clk 0:00:08]} 23. Bxb7 {[%clk 0:00:20]}  Ra5 {[%clk 0:00:07]} 24. Bc6 {[%clk 0:00:20]}  Bd7 {[%clk 0:00:04]} 25. Qh6 {[%clk 0:00:12]}  Bf6 {[%clk 0:00:02]} 26. Bxf6 {[%clk 0:00:11]}  Qxf6 {[%clk 0:00:02]} 27. Bxd7 {[%clk 0:00:10]}  Rxe1+ {[%clk 0:00:01]} 28. Rxe1 {[%clk 0:00:11]}  Ra8 {[%clk 0:00:01]} 29. Qd2 {[%clk 0:00:10]}  Rd8 {[%clk 0:00:01]} 30. Bg4 {[%clk 0:00:10]}  Qd4 {[%clk 0:00:01]} 31. Bf3 {[%clk 0:00:10]}  h5 {[%clk 0:00:01]} 32. Rc1 {[%clk 0:00:10]}  Rb8 {[%clk 0:00:01]} 33. b3 {[%clk 0:00:09]}  cxb3 {[%clk 0:00:01]} 34. axb3 {[%clk 0:00:09]}  Rxb3 {[%clk 0:00:02]} 35. Rd1 {[%clk 0:00:10]}  Rb2 {[%clk 0:00:02]} 36. Qxd3 {[%clk 0:00:09]}  Qxf2+ {[%clk 0:00:02]} 37. Kh1 {[%clk 0:00:08]}  Kg7 {[%clk 0:00:03]} 38. Qd4+ {[%clk 0:00:08]}  Qxd4 {[%clk 0:00:03]} 39. Rxd4 {[%clk 0:00:09]}  Rb1+ {[%clk 0:00:04]} 40. Rd1 {[%clk 0:00:10]}  Rb2 {[%clk 0:00:04]} 41. Rf1 {[%clk 0:00:09]}  f5 {[%clk 0:00:04]} 42. h3 {[%clk 0:00:10]}  Rc2 {[%clk 0:00:04]} 43. Kh2 {[%clk 0:00:10]}  Rd2 {[%clk 0:00:04]} 44. Kg3 {[%clk 0:00:10]}  Rc2 {[%clk 0:00:04]} 45. Ra1 {[%clk 0:00:11]}  Rc3 {[%clk 0:00:04]} 46. Ra7+ {[%clk 0:00:11]}  Kf6 {[%clk 0:00:04]} 47. h4 {[%clk 0:00:11]}  Rc4 {[%clk 0:00:04]} 48. Ra6+ {[%clk 0:00:11]}  Kg7 {[%clk 0:00:04]} 49. Bd5 {[%clk 0:00:09]}  Rd4 {[%clk 0:00:04]} 50. Bf3 {[%clk 0:00:08]}  Rc4 {[%clk 0:00:04]} 51. Ra3 {[%clk 0:00:06]}  Rd4 {[%clk 0:00:04]} 52. Ra1 {[%clk 0:00:06]}  Rc4 {[%clk 0:00:04]} 53. Rd1 {[%clk 0:00:06]}  Rb4 {[%clk 0:00:04]} 54. Rh1 {[%clk 0:00:06]}  Kf6 {[%clk 0:00:04]} 55. Kf2 {[%clk 0:00:07]}  Rb3 {[%clk 0:00:03]} 56. Ke2 {[%clk 0:00:05]}  Rc3 {[%clk 0:00:03]} 57. Rd1 {[%clk 0:00:05]}  Rb3 {[%clk 0:00:03]} 58. Rd6+ {[%clk 0:00:05]}  Kg7 {[%clk 0:00:02]} 59. Bd5 {[%clk 0:00:05]}  Rb4 {[%clk 0:00:02]} 60. g3 {[%clk 0:00:05]}  f4 {[%clk 0:00:02]} 61. Kf3 {[%clk 0:00:02]}  fxg3 {[%clk 0:00:02]} 62. Kxg3 {[%clk 0:00:03]}  Rd4 {[%clk 0:00:02]} 63. Bf3 {[%clk 0:00:03]}  Rxd6 {[%clk 0:00:02]} 64. Kf4 {[%clk 0:00:04]}  Rd4+ {[%clk 0:00:02]} 65. Kg5 {[%clk 0:00:03]}  Rc4 {[%clk 0:00:02]} 66. Be2 {[%clk 0:00:03]}  Rd4 {[%clk 0:00:02]} 67. Bf3 {[%clk 0:00:03]}  Rb4 {[%clk 0:00:02]} 68. Be2 {[%clk 0:00:03]}  Ra4 {[%clk 0:00:02]} 69. Bd3 {[%clk 0:00:03]}  Ra5+ {[%clk 0:00:02]} 70. Kf4 {[%clk 0:00:01]}  Kf6 {[%clk 0:00:03]} 71. Kg3 {[%clk 0:00:02]}  Ra4 {[%clk 0:00:03]} 72. Kh2 {[%clk 0:00:01]}  Rd4 {[%clk 0:00:03]} 73. Bf1 {[%clk 0:00:02]}  Rxh4+ {[%clk 0:00:03]} 74. Kg3 {[%clk 0:00:03]}  g5 {[%clk 0:00:04]} 75. Be2 {[%clk 0:00:03]}  Kf5 {[%clk 0:00:04]} 76. Bd3+ {[%clk 0:00:02]}  Ke5 {[%clk 0:00:04]} 77. Be2 {[%clk 0:00:03]}  Rh1 {[%clk 0:00:03]} 78. Bf3 {[%clk 0:00:03]}  Rg1+ {[%clk 0:00:03]} 79. Kh2 {[%clk 0:00:03]}  Rf1 {[%clk 0:00:03]} 80. Bxh5 {[%clk 0:00:03]}  Kf4 {[%clk 0:00:03]} 81. Kg2 {[%clk 0:00:04]}  Rc1 {[%clk 0:00:03]} 82. Bg6 {[%clk 0:00:04]}  Ra1 {[%clk 0:00:03]} 83. Bf7 {[%clk 0:00:04]}  g4 {[%clk 0:00:03]} 84. Bd5 {[%clk 0:00:05]}  Rb1 {[%clk 0:00:03]} 85. Bc6 {[%clk 0:00:01]}  Rb2+ {[%clk 0:00:03]} 86. Kg1 {[%clk 0:00:01]}  Kg3 {[%clk 0:00:03]} 87. Bg2 {[%clk 0:00:01]}  Rb1+ {[%clk 0:00:03]} 88. Bf1 {[%clk 0:00:02]}  Rc1 {[%clk 0:00:03]} 89. Kh1 {[%clk 0:00:01]}  Rxf1# {[%clk 0:00:04]} 0-1


[Site "https://www.chess.com"]

[Event "Titled Tuesday Blitz April 19 Early 2022"]
[White "Alekseenko, Kirill"]
[Black "Nakamura, Hikaru"]
[WhiteFideId "4135539"]
[BlackFideId "2016192"]
[WhiteElo "2682"]
[BlackElo "2850"]
[Result "0-1"]
[Round "06"]
[TimeControl "180+1"]
[Date "2022.04.19"]
[WhiteClock "0:00:12"]
[BlackClock "0:00:17"]

1. e4 {[%clk 0:03:00]}  e5 {[%clk 0:02:58]} 2. Nf3 {[%clk 0:03:01]}  Nc6 {[%clk 0:02:58]} 3. Bb5 {[%clk 0:03:02]}  Nf6 {[%clk 0:02:58]} 4. d3 {[%clk 0:03:02]}  Bc5 {[%clk 0:02:58]} 5. Bxc6 {[%clk 0:03:03]}  dxc6 {[%clk 0:02:58]} 6. Qe2 {[%clk 0:03:03]}  Nd7 {[%clk 0:02:55]} 7. Be3 {[%clk 0:03:03]}  Bxe3 {[%clk 0:02:52]} 8. Qxe3 {[%clk 0:03:04]}  Qe7 {[%clk 0:02:53]} 9. Nc3 {[%clk 0:03:02]}  b6 {[%clk 0:02:53]} 10. Ne2 {[%clk 0:03:02]}  Bb7 {[%clk 0:02:52]} 11. a4 {[%clk 0:02:57]}  a5 {[%clk 0:02:52]} 12. O-O {[%clk 0:02:57]}  Nc5 {[%clk 0:02:42]} 13. Nd2 {[%clk 0:02:50]}  O-O {[%clk 0:02:37]} 14. f4 {[%clk 0:02:46]}  exf4 {[%clk 0:02:38]} 15. Rxf4 {[%clk 0:02:45]}  f5 {[%clk 0:02:35]} 16. Raf1 {[%clk 0:02:31]}  fxe4 {[%clk 0:02:16]} 17. Rxf8+ {[%clk 0:02:31]}  Rxf8 {[%clk 0:02:15]} 18. Rxf8+ {[%clk 0:02:31]}  Kxf8 {[%clk 0:02:14]} 19. d4 {[%clk 0:02:22]}  Nxa4 {[%clk 0:02:09]} 20. b3 {[%clk 0:02:20]}  Nb2 {[%clk 0:02:09]} 21. Ng3 {[%clk 0:01:45]}  c5 {[%clk 0:01:51]} 22. Ndxe4 {[%clk 0:01:44]}  c4 {[%clk 0:01:46]} 23. Qf4+ {[%clk 0:01:11]}  Kg8 {[%clk 0:01:46]} 24. Qg4 {[%clk 0:01:12]}  Kh8 {[%clk 0:01:01]} 25. h3 {[%clk 0:00:56]}  cxb3 {[%clk 0:01:01]} 26. cxb3 {[%clk 0:00:56]}  Nd3 {[%clk 0:01:00]} 27. Nf5 {[%clk 0:00:52]}  Qf8 {[%clk 0:00:57]} 28. Neg3 {[%clk 0:00:43]}  Bc8 {[%clk 0:00:55]} 29. Qe4 {[%clk 0:00:40]}  Bxf5 {[%clk 0:00:52]} 30. Nxf5 {[%clk 0:00:40]}  Nc1 {[%clk 0:00:51]} 31. Qc2 {[%clk 0:00:32]}  Nxb3 {[%clk 0:00:46]} 32. Qxc7 {[%clk 0:00:33]}  a4 {[%clk 0:00:43]} 33. g4 {[%clk 0:00:28]}  a3 {[%clk 0:00:41]} 34. Qa7 {[%clk 0:00:28]}  g6 {[%clk 0:00:40]} 35. Qa4 {[%clk 0:00:19]}  gxf5 {[%clk 0:00:38]} 36. Qxb3 {[%clk 0:00:19]}  fxg4 {[%clk 0:00:38]} 37. hxg4 {[%clk 0:00:20]}  Qd6 {[%clk 0:00:35]} 38. Kg2 {[%clk 0:00:20]}  Kg7 {[%clk 0:00:32]} 39. Kh3 {[%clk 0:00:18]}  h6 {[%clk 0:00:25]} 40. d5 {[%clk 0:00:19]}  Kf6 {[%clk 0:00:22]} 41. Qe3 {[%clk 0:00:16]}  Kf7 {[%clk 0:00:19]} 42. Qf3+ {[%clk 0:00:15]}  Ke8 {[%clk 0:00:18]} 43. Qe3+ {[%clk 0:00:13]}  Kd8 {[%clk 0:00:18]} 44. Qb3 {[%clk 0:00:11]}  Kc7 {[%clk 0:00:19]} 45. Kh4 {[%clk 0:00:12]}  Qh2+ {[%clk 0:00:17]} 0-1


[Site "https://www.chess.com"]

[Event "Titled Tuesday Blitz April 19 Early 2022"]
[White "Ambartsumova, Karina"]
[Black "Rom, Jasper"]
[WhiteFideId "4166299"]
[BlackFideId "2023733"]
[WhiteElo "2262"]
[BlackElo "2233"]
[Result "1-0"]
[Round "06"]
[TimeControl "180+1"]
[Date "2022.04.19"]
[WhiteClock "0:00:14"]
[BlackClock "0:00:02"]

1. e4 {[%clk 0:03:00]}  e6 {[%clk 0:02:58]} 2. d4 {[%clk 0:03:00]}  d5 {[%clk 0:02:57]} 3. Nc3 {[%clk 0:03:01]}  Nf6 {[%clk 0:02:57]} 4. Nge2 {[%clk 0:02:59]}  c5 {[%clk 0:02:43]} 5. exd5 {[%clk 0:02:44]}  Nxd5 {[%clk 0:02:41]} 6. Ne4 {[%clk 0:02:39]}  Nd7 {[%clk 0:02:06]} 7. c3 {[%clk 0:02:22]}  Be7 {[%clk 0:02:00]} 8. g3 {[%clk 0:02:08]}  O-O {[%clk 0:01:35]} 9. Bg2 {[%clk 0:02:08]}  f5 {[%clk 0:01:26]} 10. Nxc5 {[%clk 0:02:01]}  Nxc5 {[%clk 0:01:25]} 11. dxc5 {[%clk 0:02:00]}  Bxc5 {[%clk 0:01:26]} 12. O-O {[%clk 0:01:51]}  a5 {[%clk 0:01:16]} 13. Nf4 {[%clk 0:01:40]}  Nf6 {[%clk 0:00:57]} 14. Qe2 {[%clk 0:01:36]}  Qe7 {[%clk 0:00:45]} 15. Be3 {[%clk 0:01:25]}  Bd6 {[%clk 0:00:36]} 16. Rad1 {[%clk 0:01:04]}  e5 {[%clk 0:00:17]} 17. Nd5 {[%clk 0:01:03]}  Nxd5 {[%clk 0:00:17]} 18. Bxd5+ {[%clk 0:01:03]}  Be6 {[%clk 0:00:16]} 19. Qc4 {[%clk 0:01:03]}  Rae8 {[%clk 0:00:08]} 20. Bg5 {[%clk 0:00:50]}  Qf7 {[%clk 0:00:07]} 21. a4 {[%clk 0:00:37]}  b6 {[%clk 0:00:07]} 22. b3 {[%clk 0:00:34]}  f4 {[%clk 0:00:06]} 23. Bxe6 {[%clk 0:00:33]}  Rxe6 {[%clk 0:00:04]} 24. Rxd6 {[%clk 0:00:12]}  Rxd6 {[%clk 0:00:03]} 25. Be7 {[%clk 0:00:12]}  Qxc4 {[%clk 0:00:03]} 26. bxc4 {[%clk 0:00:13]}  Rd7 {[%clk 0:00:03]} 27. Bxf8 {[%clk 0:00:13]}  Kxf8 {[%clk 0:00:03]} 28. Rb1 {[%clk 0:00:14]}  Rd6 {[%clk 0:00:03]} 29. Rb5 {[%clk 0:00:14]}  Rc6 {[%clk 0:00:02]} 30. Rxe5 {[%clk 0:00:12]}  Rxc4 {[%clk 0:00:02]} 31. Rf5+ {[%clk 0:00:12]}  Ke7 {[%clk 0:00:02]} 32. Rxf4 {[%clk 0:00:13]}  Rxc3 {[%clk 0:00:02]} 33. Kg2 {[%clk 0:00:13]}  Ke6 {[%clk 0:00:02]} 34. h4 {[%clk 0:00:13]}  Rb3 {[%clk 0:00:02]} 35. Rg4 {[%clk 0:00:12]}  Rb4 {[%clk 0:00:02]} 36. Rxg7 {[%clk 0:00:12]}  Rxa4 {[%clk 0:00:03]} 37. Rxh7 {[%clk 0:00:12]}  Rb4 {[%clk 0:00:03]} 38. Rh6+ {[%clk 0:00:12]}  Kd5 {[%clk 0:00:03]} 39. h5 {[%clk 0:00:13]}  a4 {[%clk 0:00:03]} 40. Rh8 {[%clk 0:00:13]}  a3 {[%clk 0:00:02]} 41. Ra8 {[%clk 0:00:13]}  Rb3 {[%clk 0:00:02]} 42. h6 {[%clk 0:00:14]} 1-0


[Site "https://www.chess.com"]

[Event "Titled Tuesday Blitz April 19 Early 2022"]
[White "Aradhya, Garg"]
[Black "Oganian, Miran"]
[WhiteFideId "25006746"]
[BlackFideId "4122488"]
[WhiteElo "2169"]
[BlackElo "2357"]
[Result "1-0"]
[Round "06"]
[TimeControl "180+1"]
[Date "2022.04.19"]
[WhiteClock "0:00:03"]
[BlackClock "0:00:14"]

1. d4 {[%clk 0:03:00]}  d5 {[%clk 0:02:59]} 2. c4 {[%clk 0:03:00]}  e6 {[%clk 0:03:00]} 3. Nc3 {[%clk 0:03:00]}  a6 {[%clk 0:03:00]} 4. cxd5 {[%clk 0:02:59]}  exd5 {[%clk 0:03:01]} 5. a3 {[%clk 0:02:59]}  Nf6 {[%clk 0:03:01]} 6. Bg5 {[%clk 0:02:59]}  c6 {[%clk 0:03:02]} 7. e3 {[%clk 0:02:59]}  Nbd7 {[%clk 0:03:02]} 8. Bd3 {[%clk 0:02:59]}  Be7 {[%clk 0:03:02]} 9. Qc2 {[%clk 0:02:58]}  O-O {[%clk 0:03:03]} 10. Nf3 {[%clk 0:02:58]}  Re8 {[%clk 0:03:04]} 11. O-O {[%clk 0:02:53]}  Nf8 {[%clk 0:03:04]} 12. h3 {[%clk 0:02:52]}  Bd6 {[%clk 0:03:04]} 13. Rae1 {[%clk 0:02:28]}  Be7 {[%clk 0:02:38]} 14. Ne5 {[%clk 0:02:23]}  N6d7 {[%clk 0:02:38]} 15. Bxe7 {[%clk 0:02:18]}  Rxe7 {[%clk 0:02:39]} 16. f4 {[%clk 0:02:09]}  f6 {[%clk 0:02:39]} 17. Nf3 {[%clk 0:02:09]}  Nb6 {[%clk 0:02:24]} 18. Rf2 {[%clk 0:02:08]}  Be6 {[%clk 0:02:24]} 19. Rfe2 {[%clk 0:02:07]}  Bf7 {[%clk 0:02:24]} 20. g4 {[%clk 0:02:06]}  Rc8 {[%clk 0:02:23]} 21. Kg2 {[%clk 0:01:58]}  c5 {[%clk 0:02:20]} 22. dxc5 {[%clk 0:01:48]}  Rxc5 {[%clk 0:02:21]} 23. Nd4 {[%clk 0:01:49]}  Bg6 {[%clk 0:02:13]} 24. Bxg6 {[%clk 0:01:31]}  hxg6 {[%clk 0:02:07]} 25. Qd3 {[%clk 0:01:30]}  Nc4 {[%clk 0:01:57]} 26. e4 {[%clk 0:01:24]}  Nb6 {[%clk 0:01:24]} 27. Nb3 {[%clk 0:01:07]}  Rc4 {[%clk 0:01:05]} 28. Nxd5 {[%clk 0:01:03]}  Kh8 {[%clk 0:01:05]} 29. Rd2 {[%clk 0:00:30]}  Rd7 {[%clk 0:01:03]} 30. Na5 {[%clk 0:00:18]}  Ne6 {[%clk 0:00:49]} 31. Nxc4 {[%clk 0:00:14]}  Rxd5 {[%clk 0:00:32]} 32. Qc2 {[%clk 0:00:08]}  Nxf4+ {[%clk 0:00:32]} 33. Kf3 {[%clk 0:00:07]}  Nd3 {[%clk 0:00:28]} 34. Re3 {[%clk 0:00:03]}  Nxc4 {[%clk 0:00:26]} 35. Rdxd3 {[%clk 0:00:03]}  Ne5+ {[%clk 0:00:25]} 36. Ke2 {[%clk 0:00:04]}  Rxd3 {[%clk 0:00:19]} 37. Rxd3 {[%clk 0:00:04]}  Nxd3 {[%clk 0:00:20]} 38. Qxd3 {[%clk 0:00:05]}  Qb6 {[%clk 0:00:19]} 39. Qc3 {[%clk 0:00:05]}  Kh7 {[%clk 0:00:18]} 40. Kf3 {[%clk 0:00:05]}  Qg1 {[%clk 0:00:18]} 41. e5 {[%clk 0:00:05]}  Qf1+ {[%clk 0:00:17]} 42. Kg3 {[%clk 0:00:05]}  Qg1+ {[%clk 0:00:16]} 43. Kf3 {[%clk 0:00:06]}  Qd1+ {[%clk 0:00:14]} 44. Kg3 {[%clk 0:00:06]}  fxe5 {[%clk 0:00:14]} 45. Qxe5 {[%clk 0:00:04]}  Qd4 {[%clk 0:00:14]} 46. Qxd4 {[%clk 0:00:03]} 1-0


[Site "https://www.chess.com"]

[Event "Titled Tuesday Blitz April 19 Early 2022"]
[White "Babazada, Khazar"]
[Black "De Silva, L M S T"]
[WhiteFideId "13413554"]
[BlackFideId "9953698"]
[WhiteElo "2406"]
[BlackElo "1631"]
[Result "1/2-1/2"]
[Round "06"]
[TimeControl "180+1"]
[Date "2022.04.19"]
[WhiteClock "0:01:05"]
[BlackClock "0:00:48"]

1. e4 {[%clk 0:03:00]}  e5 {[%clk 0:03:00]} 2. Nf3 {[%clk 0:03:00]}  Nc6 {[%clk 0:03:00]} 3. Bb5 {[%clk 0:03:01]}  a6 {[%clk 0:03:00]} 4. Ba4 {[%clk 0:03:00]}  Nf6 {[%clk 0:03:00]} 5. O-O {[%clk 0:03:00]}  Be7 {[%clk 0:03:00]} 6. Re1 {[%clk 0:03:00]}  b5 {[%clk 0:03:00]} 7. Bb3 {[%clk 0:03:00]}  O-O {[%clk 0:03:01]} 8. c3 {[%clk 0:03:01]}  d5 {[%clk 0:03:01]} 9. exd5 {[%clk 0:02:59]}  Nxd5 {[%clk 0:03:02]} 10. Nxe5 {[%clk 0:02:57]}  Nxe5 {[%clk 0:03:03]} 11. Rxe5 {[%clk 0:02:58]}  c6 {[%clk 0:03:03]} 12. d4 {[%clk 0:02:58]}  Bd6 {[%clk 0:03:03]} 13. Re1 {[%clk 0:02:58]}  Qh4 {[%clk 0:03:03]} 14. g3 {[%clk 0:02:59]}  Qh3 {[%clk 0:03:03]} 15. Qe2 {[%clk 0:02:59]}  Bg4 {[%clk 0:02:59]} 16. Qf1 {[%clk 0:02:59]}  Qh5 {[%clk 0:02:59]} 17. Nd2 {[%clk 0:02:59]}  Nf4 {[%clk 0:02:48]} 18. gxf4 {[%clk 0:02:59]}  Bxf4 {[%clk 0:02:49]} 19. Qg2 {[%clk 0:02:42]}  Bh3 {[%clk 0:02:41]} 20. Bd1 {[%clk 0:02:42]}  Qh6 {[%clk 0:02:23]} 21. Qf3 {[%clk 0:02:36]}  Bxd2 {[%clk 0:02:20]} 22. Bxd2 {[%clk 0:02:35]}  Qxd2 {[%clk 0:02:21]} 23. Re2 {[%clk 0:02:29]}  Qg5+ {[%clk 0:02:19]} 24. Qg3 {[%clk 0:02:27]}  Qh6 {[%clk 0:02:11]} 25. Bb3 {[%clk 0:02:23]}  Be6 {[%clk 0:02:08]} 26. Rae1 {[%clk 0:02:13]}  Rae8 {[%clk 0:02:05]} 27. f3 {[%clk 0:01:57]}  Re7 {[%clk 0:01:59]} 28. Kf2 {[%clk 0:01:57]}  Rfe8 {[%clk 0:01:59]} 29. h4 {[%clk 0:01:53]}  Kf8 {[%clk 0:01:52]} 30. Bxe6 {[%clk 0:01:52]}  Rxe6 {[%clk 0:01:11]} 31. Rxe6 {[%clk 0:01:48]}  Rxe6 {[%clk 0:01:12]} 32. Rxe6 {[%clk 0:01:44]}  Qxe6 {[%clk 0:01:05]} 33. Qb8+ {[%clk 0:01:43]}  Ke7 {[%clk 0:01:04]} 34. Qa7+ {[%clk 0:01:37]}  Kd6 {[%clk 0:00:52]} 35. Qxa6 {[%clk 0:01:21]}  Qh3 {[%clk 0:00:52]} 36. Qa3+ {[%clk 0:01:19]}  Ke6 {[%clk 0:00:52]} 37. Qc5 {[%clk 0:01:16]}  Qxh4+ {[%clk 0:00:52]} 38. Ke3 {[%clk 0:01:12]}  Qe1+ {[%clk 0:00:50]} 39. Kf4 {[%clk 0:01:10]}  Qh4+ {[%clk 0:00:48]} 40. Ke3 {[%clk 0:01:05]} 1/2-1/2


[Site "https://www.chess.com"]